Cogmind - Beta 16.1 @@@ ROGUE MODE // 2026.02.19 @ 12:11:22 // Winter2019/RPGLIKE Player: badjay Result: Destroyed by S-10 Pest with Light Assault Rifle Performance ------------- Evolutions (2) 1000 Regions Visited (4) 800 Robots Destroyed (3) 15 Value Destroyed (75) 75 Prototype IDs (11) 220 Alien Tech Used (0) 0 Bonus (14) 14 TOTAL SCORE: 2124 Bonus ------- Follower Combat Kills 14 Cogmind --------- Core Integrity 0/600 Matter 300/300 Energy 98/100 System Corruption 0% Temperature Cool (0) Movement Flying (34) Location -8/Materials Parts ------- > --- POWER (2) -------- (None) > --- PROPULSION (2) --- Flight Unit Improved VTOL Module > --- UTILITY (2) ------ Structural Scanner Machine Analyzer > --- WEAPON (1) ------- Makeshift Sword > --- INVENTORY (1) ---- (None) Peak State ------------ > --- POWER ------------ (None) > --- PROPULSION ------- Flight Unit Improved VTOL Module > --- UTILITY ---------- Structural Scanner Machine Analyzer > --- WEAPON ----------- Makeshift Sword > --- INVENTORY -------- (None) [Rating: 13] Favorites ----------- Power Subdweller Power Source Engine Subdweller Power Source Propulsion Flight Unit Flight Unit Flight Unit Utility Structural Scanner Device Structural Scanner Processor Machine Analyzer Weapon Mining Laser Energy Gun Subdweller Laser Ballistic Gun Subdweller Machine Gun Special Weapon Mining Laser Slashing Weapon Makeshift Sword Build | -11 -10 -10 -10 -8 ------- Run | Yrd Mat Min Sub Mat Slots Evolved 3 | . . . 3 . Power 1 | . . . 1 . Propulsion 1 | . . . 1 . Utility 1 | . . . 1 . Weapon . | . . . . . Parts Attached 16 | . 2 7 6 1 Power 3 | . . 2 1 . Engine 3 | . . 2 1 . Core . | . . . . . Reactor . | . . . . . Propulsion 5 | . 1 2 1 1 Treads . | . . . . . Leg . | . . . . . Wheel . | . . . . . Hover . | . . . . . Flight 5 | . 1 2 1 1 Utility 3 | . . 2 1 . Device 2 | . . 2 . . Storage . | . . . . . Processor 1 | . . . 1 . Hackware . | . . . . . Protection . | . . . . . Artifact . | . . . . . Weapon 5 | . 1 1 3 . Energy Gun 1 | . . . 1 . Energy Cannon . | . . . . . Ballistic Gun 1 | . . . 1 . Ballistic Cannon . | . . . . . Launcher . | . . . . . Special Weapon 2 | . 1 1 . . Impact Weapon . | . . . . . Slashing Weapon 1 | . . . 1 . Piercing Weapon . | . . . . . Special Melee Weapon . | . . . . . Unidentified Prototypes 1 | . . . . 1 Parts Lost 4 | . . 2 2 . Power . | . . . . . Propulsion 2 | . . 1 1 . Utility . | . . . . . Weapon 2 | . . 1 1 . Highest Loss Streak 2 | . . 2 2 . To Critical Strikes . | . . . . . Average Backups . | . . . . . Power . | . . . . . Propulsion . | . . . . . Utility . | . . . . . Weapon . | . . . . . Tool/Special . | . . . . . Unused Backups . | . . . . . Power . | . . . . . Propulsion . | . . . . . Utility . | . . . . . Weapon . | . . . . . Tool/Special . | . . . . . Average Slot Usage (%) 50 | . 23 54 59 64 Engine 1 | . . . 5 . Flight 21 | . 22 20 20 21 Device 11 | . . 15 14 14 Processor 4 | . . . 8 14 Special Weapon 8 | . . 18 9 . Slashing Weapon 3 | . . . 1 14 Peak Build Rating 13 | . 2 4 9 13 Average Rating 4 | . . 2 6 11 On Entrance 2 | . . 2 3 9 Avg Prop Armor Cover (%) 7 | . . 7 . . Naked Turns 79 | . 17 62 . . Heaviest Build 7 | . 1 2 7 3 Greatest Support 10 | 3 4 4 8 10 Greatest Overweight (x) 1 | . . . 1 . Average Overweight (x) . | . . . . . Largest Inventory Capacity 1 | . . 1 1 1 Average Capacity . | . . . 1 1 Most Carried 1 | . . 1 1 . Average Carried . | . . . . . Final Capacity 1 | . . 1 1 1 Final Carried 1 | . . 1 . . Class Distribution -------------------- 100% | Hacker-Mutant Dominant Class ---------------- Hacker-Mutant | -10/Materials Hacker-Mutant | -10/Mines Hacker-Mutant | -10/Subcaves Hacker-Mutant | -8/Materials Resources | -11 -10 -10 -10 -8 ----------- Run | Yrd Mat Min Sub Mat Matter Collected 385 | 168 . 142 . 75 Remotely . | . . . . . Salvage Created 113 | . . 56 . 57 Parts 7 | . . 4 . 3 Haulers Intercepted . | . . . . . Recyclers Shooed . | . . . . . Parts Field Recycled . | . . . . . Retrieved Matter . | . . . . . Parts Self-Destructed 2 | . . . 2 . Prevented . | . . . . . Parts Restored . | . . . . . Kills | -11 -10 -10 -10 -8 ------- Run | Yrd Mat Min Sub Mat Combat Hostiles Destroyed 3 | . . 2 . 1 Melee 3 | . . 2 . 1 Classes Destroyed 2 | . . 1 . 1 Swarmer 2 | . . 2 . . Hunter 1 | . . . . 1 Best Kill Streak 1 | . . 1 . 1 Combat Bots Only 1 | . . 1 . 1 Max Kills in Single Turn 1 | . . 1 . 1 Gunslinging . | . . . . . Exploded . | . . . . . Melee 1 | . . 1 . 1 Uniques/NPCs Destroyed . | . . . . . Combat | -11 -10 -10 -10 -8 -------- Run | Yrd Mat Min Sub Mat Hostile Shots Fired 109 | . 2 72 22 13 Missed 38 | . 1 21 8 8 Hits 71 | . 1 51 14 5 Projectile 71 | . 1 51 14 5 Damage Taken 904 | . 32 474 348 50 Core 790 | . 29 423 295 43 Absorbed by Shields . | . . . . . Redirected to Core 348 | . 8 126 193 21 Core Remaining (%) 53 | 100 . . 6 . Volleys Fired 10 | . . 3 7 . Largest 1 | . . 1 1 . Hottest 100 | . . 100 100 . Shots Fired 10 | . . 3 7 . Gun . | . . . . . Cannon . | . . . . . Launcher . | . . . . . Special 10 | . . 3 7 . Kinetic . | . . . . . Thermal 10 | . . 3 7 . Explosive . | . . . . . Electromagnetic . | . . . . . Robot Hit Streak 4 | . . . 4 . Robot Miss Streak 2 | . . 1 2 . Penetration Max . | . . . . . Secondary Targets . | . . . . . Shots Hit Robots 7 | . . . 5 2 Core Hits 11 | . . 9 1 1 Critical Kills . | . . . . . Critical Parts Destroyed . | . . . . . Critical Strikes . | . . . . . Melee Attacks 16 | . . . 3 13 Impact . | . . . . . Slashing 16 | . . . 3 13 Piercing . | . . . . . Sneak Attacks 1 | . . . . 1 Combat Hostiles 1 | . . . . 1 Follow-up Attacks . | . . . . . Damage Inflicted 389 | . . 156 120 113 Guns . | . . . . . Cannons . | . . . . . Explosions . | . . . . . Melee 113 | . . . . 113 Ramming 156 | . . 156 . . Kinetic . | . . . . . Thermal 120 | . . . 120 . Explosive . | . . . . . Electromagnetic . | . . . . . Impact . | . . . . . Slashing 113 | . . . . 113 Piercing . | . . . . . Highest Corruption 4 | . . 4 4 . Average Corruption 3 | . . 3 4 . Corruption Purged . | . . . . . Corruption Blocked . | . . . . . Effects 10 | . . 4 6 . Message Errors 2 | . . 1 1 . Matter Fused 2 | . . 1 1 . Heat Flow Errors 4 | . . 1 3 . Energy Discharges 1 | . . 1 . . Data Loss (minor) 1 | . . . 1 . Overload Shots . | . . . . . Overflow Damage 1 | . . 1 . . Projectiles . | . . . . . Explosions . | . . . . . Melee 1 | . . 1 . . Knockbacks . | . . . . . Impact . | . . . . . Kinetic . | . . . . . Secondary . | . . . . . Self-Inflicted Damage 64 | . . 64 . . Shots . | . . . . . Rammed 61 | . . 61 . . Targets Rammed 61 | . . 61 . . Kicked . | . . . . . Crushed . | . . . . . Highest Temperature 239 | . . 139 239 . Average Temperature 47 | . . 27 70 . Received Heat Transfer 117 | . 6 . 111 . Siege Activations . | . . . . . Martial Activations . | . . . . . Shielding Activations . | . . . . . Robots Disrupted . | . . . . . Combat Hostiles . | . . . . . Robots Corrupted . | . . . . . Combat Hostiles . | . . . . . Parts Fried 2 | . . 2 . . Impact Corruptions 1 | . . 1 . . Robots Melted . | . . . . . Combat Hostiles . | . . . . . Parts Melted . | . . . . . Heat Transferred 250 | . . . 250 . Parts Sabotaged . | . . . . . Parts Stolen . | . . . . . Parts Stripped . | . . . . . Power Chain Reactions . | . . . . . Alert | -11 -10 -10 -10 -8 ------- Run | Yrd Mat Min Sub Mat Maximum Alert Level . | . . . . . Low Security (%) 100 | 100 100 100 . 100 Level 1 . | . . . . . Level 2 . | . . . . . Level 3 . | . . . . . Level 4 . | . . . . . Level 5 . | . . . . . High Security . | . . . . . Max Security . | . . . . . Peak Influence 95 | . 90 46 . 95 Initial 15 | . . 15 . . Average 23 | . 42 7 . 28 Influence Increases 410 | . 139 98 . 173 Destroy 0b10 Robot/C 100 | . . 80 . 20 Destroy Leader 20 | . . 10 . 10 Allied During Kill 6 | . . 6 . . Successful Hack 36 | . 4 . . 32 Destroy Structure 8 | . . 2 . 6 Partial Spotted 30 | . . . . 30 Lose Combat Pursuer 210 | . 135 . . 75 Influence Decreases 345 | . 99 137 1 108 Entered New Map 26 | . . 25 1 . Time Decay 273 | . 99 66 . 108 Lost Part 20 | . . 20 . . Lost Ally 26 | . . 26 . . Squads Dispatched 2 | . 1 . . 1 Investigation 1 | . . . . 1 Extermination . | . . . . . Reinforcement 1 | . 1 . . . Assault . | . . . . . Garrison . | . . . . . Intercept . | . . . . . Searches Triggered . | . . . . . Construction Impeded . | . . . . . Haulers Reinforced . | . . . . . Active Scanning Responses . | . . . . . Cargo Convoy Interrupts . | . . . . . Stealth | -11 -10 -10 -10 -8 --------- Run | Yrd Mat Min Sub Mat Distress Signals 1 | . . . . 1 Communications Jammed . | . . . . . Distress Signals . | . . . . . Times Spotted 25 | . 8 6 2 9 Peak Tracking Total 5 | . 5 3 2 4 Tactical Retreats 9 | . 4 . 1 4 Traps | -11 -10 -10 -10 -8 ------- Run | Yrd Mat Min Sub Mat Traps Triggered 2 | . 1 . . 1 Indirectly . | . . . . . Trap Hack Attempts . | . . . . . Triggered . | . . . . . Disarmed . | . . . . . Reprogrammed . | . . . . . Reused . | . . . . . Traps Extracted . | . . . . . Installed 1 | . . 1 . . Triggered . | . . . . . Machines | -11 -10 -10 -10 -8 ---------- Run | Yrd Mat Min Sub Mat Machines Disabled . | . . . . . Max in Single Turn . | . . . . . Machines Repaired . | . . . . . Machines Dismantled . | . . . . . Machines Sabotaged . | . . . . . Overloaded Fab Kills . | . . . . . Hacking | -11 -10 -10 -10 -8 --------- Run | Yrd Mat Min Sub Mat Machines Accessed 14 | . 4 . . 10 Terminals 12 | . 4 . . 8 Fabricators . | . . . . . Repair Stations . | . . . . . Recycling Units . | . . . . . Scanalyzers 1 | . . . . 1 Garrison Access 1 | . . . . 1 Total Hacks 86 | . 18 . . 68 Successful 55 | . 9 . . 46 Failed 30 | . 9 . . 21 Catastrophic 3 | . 2 . . 1 Database Lockouts 1 | . . . . 1 Manual 62 | . 15 . . 47 Terminals 79 | . 18 . . 61 Fabricators . | . . . . . Repair Stations . | . . . . . Recycling Units . | . . . . . Scanalyzers 1 | . . . . 1 Garrison Access 6 | . . . . 6 Terminal Hacks 29 | . 4 . . 25 Record 1 | . . . . 1 Robot Analysis 1 | . . . . 1 Prototype ID Bank 6 | . . . . 6 Level Access Points 1 | . 1 . . . Branch Access Points 4 | . 1 . . 3 Emergency Access Points 1 | . . . . 1 Terminal Index 1 | . . . . 1 Repair Station Index 1 | . . . . 1 Alert Level 2 | . . . . 2 Transport Status 2 | . . . . 2 Investigation Status 1 | . . . . 1 Recall Investigation 1 | . . . . 1 Hauler Manifests 3 | . 1 . . 2 Registered Components 1 | . . . . 1 Zone Layout 3 | . 1 . . 2 Fabricator Hacks . | . . . . . Repair Station Hacks . | . . . . . Recycling Unit Hacks . | . . . . . Scanalyzer 1 | . . . . 1 Retrieve Study 1 | . . . . 1 Garrison Access Hacks . | . . . . . Unauthorized Hacks 25 | . 5 . . 20 Terminals 19 | . 5 . . 14 Track 10 | . 2 . . 8 Botnet 5 | . 2 . . 3 Disrupt 1 | . . . . 1 Operators 3 | . 1 . . 2 Fabricators . | . . . . . Repair Stations . | . . . . . Recycling Units . | . . . . . Scanalyzers . | . . . . . Garrison Access 6 | . . . . 6 Broadcast 1 | . . . . 1 Decoy 1 | . . . . 1 Redirect 1 | . . . . 1 Reprogram 1 | . . . . 1 Intercept 1 | . . . . 1 Watchers 1 | . . . . 1 Data Cores Recovered . | . . . . . Used . | . . . . . Hacking Detections 10 | . 4 . . 6 Full Trace Events . | . . . . . Feedback Events . | . . . . . Feedback Blocked . | . . . . . Robot Schematics Acquired . | . . . . . Robots Built . | . . . . . Authchips . | . . . . . Time . | . . . . . Total Robot Build Rating . | . . . . . Part Schematics Acquired . | . . . . . Parts Built . | . . . . . Authchips . | . . . . . Time . | . . . . . Total Part Build Rating . | . . . . . Part Studies Acquired 1 | . . . . 1 Parts Repaired . | . . . . . Time . | . . . . . Parts Recycled . | . . . . . Recycled Matter . | . . . . . Retrieved Matter . | . . . . . Retrieved Components . | . . . . . Parts Scanalyzed . | . . . . . Part Schematics Acquired . | . . . . . Parts Damaged . | . . . . . Bothacking | -11 -10 -10 -10 -8 ------------ Run | Yrd Mat Min Sub Mat Used RIF Installer . | . . . . . Robots Hacked . | . . . . . Non-combat . | . . . . . Combat . | . . . . . Robot Hacks Applied . | . . . . . Relay Couplers Released . | . . . . . Fabnet Peak Effective % . | . . . . . Robots Rewired . | . . . . . Allies Hacked . | . . . . . Hacks Repelled . | . . . . . Allies | -11 -10 -10 -10 -8 -------- Run | Yrd Mat Min Sub Mat Total Allies 3 | . . 3 . . Largest Group 3 | . . 3 . . Highest-Rated Group 40 | . . 40 . . Highest-Rated Ally 16 | . . 16 . . Total Orders . | . . . . . Ally Attacks 5 | . . 5 . . Total Damage 68 | . . 68 . . Kills 3 | . . 3 . . Allies Corrupted . | . . . . . Allies Melted . | . . . . . Intel | -11 -10 -10 -10 -8 ------- Run | Yrd Mat Min Sub Mat Active Infowar (turns) 740 | . . 229 270 241 Structural 740 | . . 229 270 241 Machine Analysis 409 | . . . 168 241 Robot Analysis Total 1 | . . . . 1 Derelict Logs Recovered 4 | . . 1 3 . Drone Launches . | . . . . . Drone Recoveries . | . . . . . Exploration | -11 -10 -10 -10 -8 ------------- Run | Yrd Mat Min Sub Mat Turns Passed 1138 | 13 257 357 270 241 Spaces Moved 1922 | 24 410 609 532 347 Core 85 | 24 32 29 . . Treads . | . . . . . Legs . | . . . . . Wheels . | . . . . . Hover . | . . . . . Flight 1837 | . 378 580 532 347 Fastest Speed 34 | 50 40 40 37 34 Average Speed 39 | 50 40 40 39 36 Slowest Speed 120 | 50 50 50 120 40 Overloaded Moves . | . . . . . Propulsion Burnouts . | . . . . . Robots Hopped 19 | . 6 12 . 1 Potential Cave-ins 2 | . . . . 2 Cave-ins Triggered . | . . . . . Exploration Rate (%) 40 | 3 50 84 26 39 Regions Visited 4 Branch Regions 2 Pre-discovered Areas 3 | . . 1 2 . Known Exits Taken 1 | . 1 . . . Unknown Exits Taken 3 | 1 . 1 1 . Scrap Searched 5 | . . 3 2 . Spaces Dug 11 | . . 2 . 9 Terrain Destroyed 11 | . . 2 . 9 Melee 9 | . . . . 9 Projectile 2 | . . 2 . . AOE . | . . . . . Terrain Rammed . | . . . . . Walls Destroyed . | . . . . . Machines Disabled . | . . . . . Actions | -11 -10 -10 -10 -8 --------- Run | Yrd Mat Min Sub Mat Total 2226 | 24 492 696 567 447 Wait 203 | 1 87 12 16 87 Move 1881 | 23 397 585 531 345 Hop 18 | . 6 11 . 1 Pick Up 1 | . . 1 . . Fast Attach 15 | . 2 7 5 1 Attach 1 | . . . 1 . Detach . | . . . . . Swap 2 | . . 1 1 . Drop 8 | . . 5 3 . Fire 10 | . . 3 7 . Melee 16 | . . . 3 13 Ram 61 | . . 61 . . Kick . | . . . . . Crush . | . . . . . Escape Stasis . | . . . . . Rewire . | . . . . . Trap 1 | . . 1 . . Miscellaneous 9 | . . 9 . . Route ------- -11/Scrapyard -10/Materials (discovered 4 exits: *Mat x3 / *Min) -10/Mines (discovered 2 exits: *Mat / [*Sub]) -10/Subcaves (discovered 2 exits: *Mat / Rec) -8/Materials (discovered 3 exits: [*Fac x2] / Sto) History --------- Turn | Location | Event 8 | -11/Scrapyard | Discovered new exit (range 12) 14 | -11/Scrapyard | Entered Materials 17 | -10/Materials | Discovered new exit (range 17) 17 | -10/Materials | Identified exit to Mines 26 | -10/Materials | Identified exit to Materials 271 | -10/Materials | Entered Mines 289 | -10/Mines | Found a hidden stash of uninstalled traps 305 | -10/Mines | Learned location of Storage (-8) 307 | -10/Mines | Found DCF Scrap (13 items) 309 | -10/Mines | Build established: Hacker-Mutant 353 | -10/Mines | Discovered exit to Materials (range 7) 359 | -10/Mines | Assisted by bots powering up and referring to "LRC-V3" 471 | -10/Mines | Lost 3 allies 484 | -10/Mines | Core integrity fell below 50% 619 | -10/Mines | Discovered new exit (range 9) 628 | -10/Mines | Entered Subcaves 629 | -10/Subcaves | Approached by a straggling Scientist 630 | -10/Subcaves | Reached level 2 630 | -10/Subcaves | Upgraded with Power slot (x1) 630 | -10/Subcaves | Upgraded with Propulsion slot (x1) 630 | -10/Subcaves | Upgraded with Utility slot (x1) 686 | -10/Subcaves | Learned location of Zion (-7) 702 | -10/Subcaves | Identified exit to Recycling 779 | -10/Subcaves | Core integrity fell below 20% 864 | -10/Subcaves | Shifting Twisted Machinery released Sub. Machine Gun 872 | -10/Subcaves | Shifting Twisted Machinery released Mak. Sword 888 | -10/Subcaves | Discovered new exit (range 11) 898 | -10/Subcaves | Entered Materials 899 | -8/Materials | Core integrity fell below 50% 899 | -8/Materials | Core integrity fell below 20% 900 | -8/Materials | Reached level 3 985 | -8/Materials | Identified exit to Storage 1001 | -8/Materials | Discovered new exit (range 17) 1052 | -8/Materials | Central database locked down 1085 | -8/Materials | Discovered new exit (range 3) 1139 | -8/Materials | Destroyed by S-10 Pest with Light Assault Rifle Last Messages --------------- 01095_ Terminal x1 01096_ Connecting with Terminal... >>Trojan(Track) Trojan loaded successfully. Testing... Tracking enabled and active. >>Trojan(Disrupt) Trojan loaded successfully. Testing... Disruption routine running. >>Prototypes Downloading prototype IDs... Cld. Pulse Rifle Prc. Assault Rifle >>Index(Repair Stations) Found 2 repair stations. Downloaded coordinate data. >>Access(Emergency) No emergency access doors found in local area. 01134_ Sneak attack on S-10 Pest. Map ----- +----------------------------------------------------+ | ????????????????????????????? | | ????????????????????????????? | | ???????????????????]????????? | | ????????????????????????????? | | ????????????????????????????? | | ????????????????????????????? | | ?????????????]??????????????? | | ????????????????????????????? | | ????????????????????????????? | | ????????????????????????????? | | ????????????????????????????? | | ????????????????????????????? | | ?????? ????????????????????? | | ?]???? ????????????????????? | | ?????? ????????????????????? | | ?????? ????????????????????? | | ?????? ????????????????????? | | ?????? ????????????????????? | | ???? # ????????????????????? | | ???? # ???????????????????? | | # # #+???????????????????? | | ###### # ???????????????????? | | # # # ???????????????????? | | # # # ???????????????????? | | # #s# ???????????????????? | | # @#s# ???????????????????? | | # s + ???????????????????? | | #"" #s# ???????????????????? | | #"T # # ???????????????????? | | #"" # # ###### ?????? | | # # #####+######### ?????? | | ###### #### # ?????? | | ###### + ?????? | | ????####### # ?????? | | ????####### ######## ?????? | | ?????????## ######## ?????? | | ?????????## ##????????????? | | ?????????## ##????????????? | | ?????????## ##????????????? | | ?????????## ##????????????? | | ?????????## ##????????????? | | ?????????## ##????????????? | | ?????????## ##????????????? | | ???????? ## ###???????????? | | ????"""? ## ###???????????? | | ????"""? # ##???????????? | | ????"""? # ##???????????? | | ???????? + T ##?????####### | | ????"""? # ##?????####### | | ????"""? # ######### | +----------------------------------------------------+ Best States ------------- Heat Dissipation 25 Energy Generation 15 Energy Capacity 200 Matter Stores 300 Matter Capacity 300 Sight Range 16 Terrain Scan Density 10 Evasion (%) 63 Offensive Hacking 15 Defensive Hacking 15 Item Schematics ----------------- None Robot Schematics ------------------ None Fabricated ------------ Nothing Repaired ---------- Nothing Studied --------- Flight Unit | -8/Materials | Hacked Alien Tech Used ----------------- None Achievements -------------- None Challenges ------------ None RPGLIKE | -11 -10 -10 -10 -8 --------- Run | Yrd Mat Min Sub Mat Levels Raised 2 | . . . 1 1 XP Earned 6606 | 3000 . 956 1000 1650 XP Spent 5850 | . 2700 250 1500 1400 Upgrades 14 | . 6 1 3 4 Power Slot 1 | . . . 1 . Propulsion Slot 1 | . . . 1 . Utility Slot 1 | . . . 1 . Inventory Capacity 1 | . . 1 . . Melee Accuracy 4 | . . . . 4 Hack Attack % 3 | . 3 . . . Hack Defense % 3 | . 3 . . . Protomatter Created . | . . . . . Integrity Restored 186 | . . 186 . . Core 186 | . . 186 . . Protomatter Decayed . | . . . . . Game ------ Seed GravjetDataCapacitor Manual? 0 Play Time 00:26:30 Cumulative 183.5 hours Start 2026.02.19 @ 10:58:28 End 2026.02.19 @ 12:11:22 Sessions 2 Manual Loads 0 Difficulty Rogue Special Mode Winter2019/RPGLIKE Game No. 194 Rogue 194 Adventurer 0 Explorer 0 Win Type - Total 13 Types 11/0/0/1/0/0/1/0/0/0 Lore% 43 Gallery% 54 Achievement% 43 Wizard Run 0 Options --------- Layout 2 ASCII 0 Keyboard 0 Movement Numpad Keybinds 0 Fullscreen 1 Font 24/Smallcaps Map View 50x44 Zoom Use 0% Tactical HUD 1 Map Filters NONE Filters NONE Steam 1 RUN: 8b9a4149-4ca4-450c-934d-c898a2c344a6